{"text_format":"3","workbook":"xlsx","n_sheets":8,"sheets":["VPN基础信息","APK逆向及github源码分析","官方文档及API分析","https代理解析","运行特征分析","自动化拨测及特征提取","完成进度","Confluence更新"],"not_rendered":{"images":9},"cells_cut":3,"read":"whole","date_system":"1900"}

{"sheet":"VPN基础信息","index":0,"n_rows":46,"n_cols":22,"rows_kept":46,"merged":[[0,0,1,0],[0,1,1,1],[0,2,1,2],[0,3,1,3],[0,4,1,4],[0,5,1,5],[0,6,1,6],[0,7,1,7],[0,8,1,8],[0,9,1,9],[0,10,1,10],[0,11,1,11],[0,12,1,12],[0,14,1,14],[0,15,1,15],[0,16,1,16],[0,17,1,17],[0,18,1,18],[0,19,1,19],[0,20,1,20],[0,21,1,21],[2,0,6,0],[2,1,6,1],[2,2,6,2],[2,3,6,3],[2,4,6,4],[2,5,6,5],[2,6,6,6],[2,7,6,7],[2,8,6,8],[2,9,6,9],[2,10,6,10],[2,11,6,11],[2,12,6,12],[2,13,6,13],[2,16,6,16],[2,17,6,17],[2,18,6,18],[2,19,6,19],[2,20,6,20],[2,21,6,21],[7,0,11,0],[7,1,11,1],[7,2,11,2],[7,3,11,3],[7,4,11,4],[7,5,11,5],[7,6,11,6],[7,7,11,7],[7,8,11,8],[7,9,11,9],[7,10,11,10],[7,11,11,11],[7,12,11,12],[7,13,11,13],[7,16,11,16],[7,17,11,17],[7,18,11,18],[7,19,11,19],[7,20,11,20],[7,21,11,21],[12,0,16,0],[12,1,16,1],[12,2,16,2],[12,3,16,3],[12,4,16,4],[12,5,16,5],[12,6,16,6],[12,7,16,7],[12,8,16,8],[12,9,16,9],[12,10,16,10],[12,11,16,11],[12,12,16,12],[12,13,16,13],[12,16,16,16],[12,17,16,17],[12,18,16,18],[12,19,16,19],[12,20,16,20],[12,21,16,21],[17,0,20,0],[17,1,20,1],[17,2,20,2],[17,3,20,3],[17,4,20,4],[17,5,20,5],[17,6,20,6],[17,7,20,7],[17,8,20,8],[17,9,20,9],[17,10,20,10],[17,11,20,11],[17,12,20,12],[17,13,20,13],[17,16,20,16],[17,17,20,17],[17,18,20,18],[17,19,20,19],[17,20,20,20],[17,21,20,21],[21,0,25,0],[21,1,25,1],[21,2,25,2],[21,3,25,3],[21,4,25,4],[21,5,25,5],[21,6,25,6],[21,7,25,7],[21,8,25,8],[21,9,25,9],[21,10,25,10],[21,11,25,11],[21,12,25,12],[21,13,25,13],[21,16,25,16],[21,17,25,17],[21,18,25,18],[21,19,25,19],[21,20,25,20],[21,21,25,21],[26,0,30,0],[26,1,30,1],[26,2,30,2],[26,3,30,3],[26,4,30,4],[26,5,30,5],[26,6,30,6],[26,7,30,7],[26,8,30,8],[26,9,30,9],[26,10,30,10],[26,11,30,11],[26,12,30,12],[26,13,30,13],[26,16,30,16],[26,17,30,17],[26,18,30,18],[26,19,30,19],[26,20,30,20],[26,21,30,21],[31,0,35,0],[31,1,35,1],[31,2,35,2],[31,3,35,3],[31,4,35,4],[31,5,35,5],[31,6,35,6],[31,7,35,7],[31,8,35,8],[31,9,35,9],[31,10,35,10],[31,11,35,11],[31,12,35,12],[31,13,35,13],[31,16,35,16],[31,17,35,17],[31,18,35,18],[31,19,35,19],[31,20,35,20],[31,21,35,21],[36,0,40,0],[36,1,40,1],[36,2,40,2],[36,3,40,3],[36,4,40,4],[36,5,40,5],[36,6,40,6],[36,7,40,7],[36,8,40,8],[36,9,40,9],[36,10,40,10],[36,11,40,11],[36,12,40,12],[36,13,40,13],[36,16,40,16],[36,17,40,17],[36,18,40,18],[36,19,40,19],[36,20,40,20],[36,21,40,21],[41,0,45,0],[41,1,45,1],[41,2,45,2],[41,3,45,3],[41,4,45,4],[41,5,45,5],[41,6,45,6],[41,7,45,7],[41,8,45,8],[41,9,45,9],[41,10,45,10],[41,11,45,11],[41,12,45,12],[41,13,45,13],[41,16,45,16],[41,17,45,17],[41,18,45,18],[41,19,45,19],[41,20,45,20],[41,21,45,21]]}
["序号","优先级","是否提供特征","VPN名称","图标","用户提供的链接","官网","Android包名","IOS包名","支持平台（Windows/Android/iOS）","Windows下载地址","Android下载地址","最后更新时间（Android）","最新版本","历史更新时间（apkpure.net）","版本信息","收费情况(完全免费，提供部分免费节点，完全收费)","价格(按月计费)","下载量（Android）","能否使用","M现场能否使用","备注"]
[{"$nulls":13},"（Android）"]
[168,"高",null,"Slice VPN",{"$f":"_xlfn.DISPIMG(\"ID_C9BA1FA231E64BD5B38AD3894416AEBF\",1)","v":"=DISPIMG(\"ID_C9BA1FA231E64BD5B38AD3894416AEBF\",1)"},"https://play.google.com/store/apps/details?id=secure.slice.free.vpn&hl=en_US",null,"secure.slice.free.vpn",null,"Android",null,"https://play.google.com/store/apps/details?id=secure.slice.free.vpn&hl=en_US","2024-05-05","1.309-playStore","2024-05-06","1.309-playStore","完全免费","-","1000k",null,"是"]
[{"$nulls":14},"2024-02-29","1.307-playStore"]
[{"$nulls":14},"2024-02-29","1.306-playStore"]
[{"$nulls":14},"2024-02-25","1.305-playStore"]
[{"$nulls":14},"2024-02-20","1.304-playStore"]
[171,"最高",null,"Snap VPN",{"$f":"_xlfn.DISPIMG(\"ID_5D704A3EC1264F00912808E44A24AB4C\",1)","v":"=DISPIMG(\"ID_5D704A3EC1264F00912808E44A24AB4C\",1)"},"https://play.google.com/store/apps/details?id=free.vpn.unblock.proxy.vpnpro&hl=en&gl=US",null,"free.vpn.unblock.proxy.vpnpro",null,"Android/iOS",null,"https://play.google.com/store/apps/details?id=free.vpn.unblock.proxy.vpnpro&hl=en&gl=US","2024-06-24","4.7.3.2","2024-06-28","4.7.4.1","提供部分免费节点",{"v":8.99,"d":"$8.99"},"50000k",null,"是","Fast Level"]
[{"$nulls":14},"2024-06-26","4.7.4"]
[{"$nulls":14},"2024-06-21","4.7.3.2"]
[{"$nulls":14},"2024-06-19","4.7.3"]
[{"$nulls":14},"2024-05-16","4.7.2.1"]
[176,"中",null,"Stark VPN Reloaded",{"$f":"_xlfn.DISPIMG(\"ID_ABD9831EA7004BDB854E22ECBDF75BCC\",1)","v":"=DISPIMG(\"ID_ABD9831EA7004BDB854E22ECBDF75BCC\",1)"},"https://play.google.com/store/apps/details?id=istark.vpn.starkreloaded&hl=en_US","https://www2.unotelly.com/","istark.vpn.starkreloaded",null,"Android",null,"https://play.google.com/store/apps/details?id=istark.vpn.starkreloaded&hl=en_US","2024-05-17",5.5,"2023-09-23",5.5,"完全免费","-","10000k",null,"是"]
[{"$nulls":14},"2023-09-23",5.4]
[{"$nulls":14},"2023-09-20",5.3]
[{"$nulls":14},"2023-09-19",5.2]
[{"$nulls":14},"2023-05-09",5.1]
[177,"中",null,"Start VPN",{"$f":"_xlfn.DISPIMG(\"ID_0C372446CC534A0587882C22D17E0245\",1)","v":"=DISPIMG(\"ID_0C372446CC534A0587882C22D17E0245\",1)"},"https://starvpnapp.com/","https://web.uppersafe.com/","com.dem.startvpn",null,"Windows/Android/iOS","https://startvpnstorage.blob.core.windows.net/startvpnstoragecontainer/StartVPNSetup.exe","https://play.google.com/store/apps/details?id=com.dem.startvpn","2024-01-19","1.0.12","2024-01-24","1.0.12","提供部分免费节点",{"v":7.99,"d":"$7.99"},"100k",null,"是"]
[{"$nulls":14},"2023-12-01","1.0.10"]
[{"$nulls":14},"2023-10-04","1.0.8"]
[{"$nulls":14},"2023-06-30","1.0.3"]
[179,"中",null,"strongSwan VPN Client",{"$f":"_xlfn.DISPIMG(\"ID_28341A9BF245440FA37CE35E8DBD2234\",1)","v":"=DISPIMG(\"ID_28341A9BF245440FA37CE35E8DBD2234\",1)"},"https://www.strongswan.org/","https://www.strongswan.org/","org.strongswan.android",null,"Android/Linux",null,"https://play.google.com/store/apps/details?id=org.strongswan.android","2024-02-26","2.5.1","2024-02-26","2.5.1","完全免费","-","500k",null,"是"]
[{"$nulls":14},"2024-02-23","2.5.0"]
[{"$nulls":14},"2023-12-28","2.4.2"]
[{"$nulls":14},"2023-02-18","2.4.1"]
[{"$nulls":14},"2023-02-16","2.4.0"]
[181,"高",null,"Super Speed VPN Proxy",{"$f":"_xlfn.DISPIMG(\"ID_4FC2A303B5754C9090A6408B6D38256B\",1)","v":"=DISPIMG(\"ID_4FC2A303B5754C9090A6408B6D38256B\",1)"},"https://play.google.com/store/apps/details?id=com.super.speed.vpn.master.proxy&hl=en&gl=US","https://www.quarkvpn.com/privacy.html","com.super.speed.vpn.master.proxy",null,"Android",null,"https://play.google.com/store/apps/details?id=com.super.speed.vpn.master.proxy&hl=en&gl=US","2024-05-30","3.0.1","2024-05-31","3.0.1","提供部分免费节点",{"v":1.99,"d":"$1.99"},"1000k",null,"是"]
[{"$nulls":14},"2024-05-30","3.0.0"]
[{"$nulls":14},"2023-11-10","2.0.0"]
[{"$nulls":14},"2023-01-06","1.0.6"]
[{"$nulls":14},"2022-12-06","1.0.5"]
[182,"高",null,"Super VPN",{"$f":"_xlfn.DISPIMG(\"ID_C3B4F14019B14EE0BD81181E5BCCA3A1\",1)","v":"=DISPIMG(\"ID_C3B4F14019B14EE0BD81181E5BCCA3A1\",1)"},"https://play.google.com/store/apps/details?id=com.jrzheng.supervpnfree&hl=en&gl=US",null,"com.jrzheng.supervpnfree",null,"Android",null,"https://play.google.com/store/apps/details?id=com.jrzheng.supervpnfree&hl=en&gl=US","2024-03-30","2.9.7","2024-03-31","2.9.7","提供部分免费节点",{"v":2.99,"d":"$2.99"},"100000k",null,"是"]
[{"$nulls":14},"2024-03-22","2.9.6"]
[{"$nulls":14},"2024-02-19","2.9.5"]
[{"$nulls":14},"2024-01-29","2.9.3"]
[{"$nulls":14},"2024-01-27","2.8.9"]
[183,"高",null,"Super VPN",{"$f":"_xlfn.DISPIMG(\"ID_55C42FEB730C47A9A6682D9A5CF6BF0D\",1)","v":"=DISPIMG(\"ID_55C42FEB730C47A9A6682D9A5CF6BF0D\",1)"},"https://play.google.com/store/apps/details?id=com.jrzheng.supervpnfree&hl=en&gl=US",null,"com.jrzheng.supervpnfree",null,"Android",null,"https://play.google.com/store/apps/details?id=com.jrzheng.supervpnfree&hl=en&gl=US","2024-03-30","2.9.7","2024-03-31","2.9.7","提供部分免费节点",{"v":2.99,"d":"$2.99"},"100000k",null,"是"]
[{"$nulls":14},"2024-03-22","2.9.6"]
[{"$nulls":14},"2024-02-19","2.9.5"]
[{"$nulls":14},"2024-01-29","2.9.3"]
[{"$nulls":14},"2024-01-27","2.8.9"]
[185,"中",null,"SuperNet VPN",{"$f":"_xlfn.DISPIMG(\"ID_6216F28F2F01400E92274C3E67661ABD\",1)","v":"=DISPIMG(\"ID_6216F28F2F01400E92274C3E67661ABD\",1)"},"https://play.google.com/store/apps/details?id=unlimited.free.vpn.unblock.proxy.supernet.vpn&hl=en&gl=US",null,"unlimited.free.vpn.unblock.proxy.supernet.vpn",null,"Android",null,"https://play.google.com/store/apps/details?id=unlimited.free.vpn.unblock.proxy.supernet.vpn&hl=en&gl=US","2023-12-12","1.1.8","2023-12-11","1.1.8","完全免费","-","1000k",null,"是"]
[{"$nulls":14},"2023-08-16","1.1.7.1"]
[{"$nulls":14},"2023-08-13","1.1.7"]
[{"$nulls":14},"2022-12-09","1.1.6"]
[{"$nulls":14},"2022-10-27","1.1.5"]

{"sheet":"APK逆向及github源码分析","index":1,"n_rows":7,"n_cols":10,"rows_kept":7}
["序号",168,171,176,177,179,181,182,183,185]
["VPN名称","Slice VPN","Snap VPN","Stark VPN Reloaded","Start VPN","strongSwan VPN Client","Super Speed VPN Proxy","Super VPN","Super VPN","SuperNet VPN"]
["图标",{"$f":"_xlfn.DISPIMG(\"ID_28F66A3633D54686BDC84674EA70FD4C\",1)","v":"=DISPIMG(\"ID_28F66A3633D54686BDC84674EA70FD4C\",1)"},{"$f":"_xlfn.DISPIMG(\"ID_2A8002DFA0194025863BE295BC220B44\",1)","v":"=DISPIMG(\"ID_2A8002DFA0194025863BE295BC220B44\",1)"},{"$f":"_xlfn.DISPIMG(\"ID_E6D3C7D636C24FCFB74E39EFDA7DC6D8\",1)","v":"=DISPIMG(\"ID_E6D3C7D636C24FCFB74E39EFDA7DC6D8\",1)"},{"$f":"_xlfn.DISPIMG(\"ID_14B37E1763D64114B1BA52F7BB11DCB4\",1)","v":"=DISPIMG(\"ID_14B37E1763D64114B1BA52F7BB11DCB4\",1)"},{"$f":"_xlfn.DISPIMG(\"ID_08ECCB22CC67476488C7CE6A0AA44575\",1)","v":"=DISPIMG(\"ID_08ECCB22CC67476488C7CE6A0AA44575\",1)"},{"$f":"_xlfn.DISPIMG(\"ID_F52840D288E94FB6BF4C221867365869\",1)","v":"=DISPIMG(\"ID_F52840D288E94FB6BF4C221867365869\",1)"},{"$f":"_xlfn.DISPIMG(\"ID_B01F8E8F2D7943ACA108A779FCD54D98\",1)","v":"=DISPIMG(\"ID_B01F8E8F2D7943ACA108A779FCD54D98\",1)"},{"$f":"_xlfn.DISPIMG(\"ID_B703A6502B914B7880ACEDB61AB095DC\",1)","v":"=DISPIMG(\"ID_B703A6502B914B7880ACEDB61AB095DC\",1)"},{"$f":"_xlfn.DISPIMG(\"ID_143001543C2A4703A9EE72E1BC4CFD64\",1)","v":"=DISPIMG(\"ID_143001543C2A4703A9EE72E1BC4CFD64\",1)"}]
["IP","1.1.1.1\n1.0.0.0\n1.0.0.1\n8.8.8.8\n26.26.26.1\n0.0.0.0\n26.26.26.2\n255.255.255.252\n127.0.0.1\n5.4.1.1\n3.6.0.0\n2.9.5.0\n5.7.0.2\n2.4.1.1\n2.4.1.8\n2.4.1.2\n107.219.186.28\n4.2.2.8",{"$cut":{"chars":32767,"head":"198.199.101.152\n8.8.8.8\n0.0.0.0\n127.0.0.1\n172.19.0.1\n172.19.0.2\n255.255.255.255\n172.16.252.1\n224.0.0.0\n1.1.1.1\n192.241.201.195\n138.68.27.73\n128.199.143.162\n104.236.57.206\n3.4.39.302\n1.0.0.1\n8.8.4.4\n1.0.0.0\n2.0.0.0\n4.0.0.0\n8.0.0.0\n11.0.0.0\n12.0.0.0\n16.0.0.0\n32.0.0.0\n64.0.0.0\n96.0.0.0\n100.0.0.0\n100.128.0.0\n101.0.0.0\n102.0.0.0\n104.0.0.0\n112.0.0.0\n112.64.0.0\n112.96.0.0\n112.112.0.0\n112.120.0.0\n112.124.0.0\n112.124.32.0\n112.124.40.0\n112.124.44.0\n112.124.46.0\n112.124.48.0\n112.124.64.0\n112.124.128.0\n112.125.0.0\n112.126.0.0\n112.128.0.0\n113.0.0.0\n114.0.0.0\n114.64.0.0\n114.96.0.0\n114.112.0.0\n114.114.0.0\n114.114.64.0\n114.114.96.0\n114.114.112.0\n114.114.115.0\n114.114.116.0\n114.114.120.0\n114.114.128.0\n114.115.0.0\n114.116.0.0\n114.120.0.0\n114.128.0.0\n115.0.0.0\n116.0.0.0\n120.0.0.0\n124.0.0.0\n126.0.0.0\n128.0.0.0\n160.0.0.0\n168.0.0.0\n169.0.0.0\n169.128.0.0\n169.192.0.0\n169.224.0.0\n169.240.0.0\n169.248.0.0\n169.252.0.0\n169.255.0.0\n170.0.0.0\n172.0.0.0\n172.32.0.0\n172.64.0.0\n172.128.0.0\n173.0.0.0\n174.0.0.0\n176.0.0.0\n192.0.0.8\n192.0.0.16\n192.0.0.32\n192.0.0.64\n192.0.0.128\n192.0.1.0\n192.0.3.0\n192.0.4.0\n192.0.8.0\n192.0.16.0\n192.0.32.0\n192.0.64.0\n192.0.128.0\n192.1.0.0\n192.2.0.0\n192.4.0.0\n192.8.0.0\n192.16.0.0\n192.32.0.0\n192.64.0.0\n192.80.0.0\n192.88.0.0\n192.88.64.0\n192.88.96.0\n192.88.98.0\n192.88.100.0\n192.88.104.0\n192.88.112.0\n192.88.128.0\n192.89.0.0\n192.90.0.0\n192.92.0.0\n192.96.0.0\n192.128.0.0\n192.160.0.0\n192.169.0.0\n192.170.0.0\n192.172.0.0\n192.176.0.0\n192.192.0.0\n193.0.0.0\n194.0.0.0\n196.0.0.0\n198.0.0.0\n198.16.0.0\n198.20.0.0\n198.24.0.0\n198.32.0.0\n198.48.0.0\n198.50.0.0\n198.51.0.0\n198.51.64.0\n198.51.96.0\n198.51.101.0\n198.51.102.0\n198.51.104.0\n198.51.112.0\n198.51.128.0\n198.52.0.0\n198.56.0.0\n198.64.0.0\n198.128.0.0\n199.0.0.0\n200.0.0.0\n202.0.0.0\n203.0.0.0\n203.0.64.0\n203.0.96.0\n203.0.112.0\n203.0.114.0\n203.0.116.0\n203.0.120.0\n203.0.128.0\n203.1.0.0\n203.2.0.0\n203.4.0.0\n203.8.0.0\n203.16.0.0\n203.32.0.0\n203.64.0.0\n203.128.0.0\n204.0.0.0\n208.0.0.0\n1.0.1.0\n1.0.2.0\n1.0.8.0\n1.0.32.0\n1.1.0.0\n1.1.2.0\n1.1.4.0\n1.1.8.0\n1.1.16.0\n1.1.32.0\n1.2.0.0\n1.2.2.0\n1.2.4.0\n1.2.8.0\n1.2.16.0\n1.2.32.0\n1.2.64.0\n1.3.0.0\n1.4.1.0\n1.4.2.0\n1.4.4.0\n1.4.8.0\n1.4.16.0\n1.4.32.0\n1.4.64.0\n1.8.0.0\n1.10.0.0\n1.10.8.0\n1.10.11.0\n1.10.12.0\n1.10.16.0\n1.10.32.0\n1.10.64.0\n1.12.0.0\n1.24.0.0\n1.45.0.0\n1.48.0.0\n1.56.0.0\n1.68.0.0\n1.80.0.0\n1.116.0.0\n1.180.0.0\n1.184.0.0\n1.188.0.0\n1.192.0.0\n1.202.0.0\n1.204.0.0\n8.128.0.0\n8.208.0.0\n14.0.0.0\n14.0.12.0\n14.1.0.0\n14.1.24.0\n14.1.96.0\n14.1.108.0\n14.16.0.0\n14.102.128.0\n14.102.156.0\n14.102.180.0\n14.103.0.0\n14.104.0.0\n14.112.0.0\n14.130.0.0\n14.134.0.0\n14.144.0.0\n14.192.56.0\n14.192.76.0\n14.196.0.0\n14.204.0.0\n14.208.0.0\n20.134.160.0\n20.139.160.0\n27.0.128.0\n27.0.160.0\n27.0.188.0\n27.0.204.0\n27.0.208.0\n27.8.0.0\n27.16.0.0\n27.34.232.0\n27.36.0.0\n27.40.0.0\n27.50.40.0\n27.50.128.0\n27.54.72.0\n27.54.152.0\n27.54.192.0\n27.98.208.0\n27.98.224.0\n27.99.128.0\n27.103.0.0\n27.106.128.0\n27.106.204.0\n27.109.32.0\n27.109.124.0\n27.112.0.0\n27.112.80.0\n27.112.112.0\n27.113.128.0\n27.115.0.0\n27.116.44.0\n27.121.72.0\n27.121.120.0\n27.123.232.0\n27.128.0.0\n27.131.220.0\n27.144.0.0\n27.148.0.0\n27.152.0.0\n27.184.0.0\n27.192.0.0\n27.224.0.0\n36.0.0.0\n36.0.8.0\n36.0.16.0\n36.0.32.0\n36.0.64.0\n36.0.128.0\n36.1.0.0\n36.4.0.0\n36.16.0.0\n36.32.0.0\n36.36.0.0\n36.37.0.0\n36.37.36.0\n36.37.39.0\n36.37.40.0\n36.37.48.0\n36.40.0.0\n36.48.0.0\n36.51.0.0\n36.56.0.0\n36.96.0.0\n36.128.0.0\n36.192.0.0\n36.248.0.0\n36.254.0.0\n36.255.116.0\n36.255.128.0\n36.255.164.0\n36.255.172.0\n36.255.176.0\n36.255.220.0\n39.0.0.0\n39.0.2.0\n39.0.4.0\n39.0.8.0\n39.0.16.0\n39.0.32.0\n39.0.64.0\n39.0.128.0\n39.64.0.0\n39.96.0.0\n39.104.0.0\n39.108.0.0\n39.109.120.0\n39.128.0.0\n40.0.176.0\n40.0.247.0\n40.0.248.0\n40.0.252.0\n40.0.255.0\n40.72.0.0\n40.125.128.0\n40.126.64.0\n40.198.10.0\n40.198.16.0\n40.198.24.0\n40.251.225.0\n40.251.227.0\n42.0.0.0\n42.0.8.0\n42.0.16.0\n42.0.24.0\n42.0.32.0\n42.0.128.0\n42.1.0.0\n42.1.32.0\n42.1.48.0\n42.1.56.0\n42.1.128.0\n42.4.0.0\n42.48.0.0\n42.56.0.0\n42.62.0.0\n42.62.128.0\n42.62.160.0\n42.62.180.0\n42.62.184.0\n42.63.0.0\n42.80.0.0\n42.83.64.0\n42.83.80.0\n42.83.88.0\n42.83.96.0\n42.83.128.0\n42.84.0.0\n42.88.0.0\n42.96.64.0\n42.96.96.0\n42.96.108.0\n42.96.112.0\n42.96.128.0\n42.97.0.0\n42.99.0.0\n42.99.64.0\n4"}},"127.0.0.1","127.0.0.1\n8.8.8.8\n89.117.48.52\n8.8.4.4\n224.0.0.0\n255.255.255.255\n0.0.0.0\n8.0.0.0\n11.0.0.0\n12.0.0.0\n16.0.0.0\n32.0.0.0\n64.0.0.0\n128.0.0.0\n160.0.0.0\n168.0.0.0\n172.0.0.0\n172.32.0.0\n172.64.0.0\n172.128.0.0\n173.0.0.0\n174.0.0.0\n176.0.0.0\n192.0.0.0\n192.128.0.0\n192.160.0.0\n192.169.0.0\n192.170.0.0\n192.172.0.0\n192.176.0.0\n192.192.0.0\n193.0.0.0\n194.0.0.0\n196.0.0.0\n200.0.0.0\n208.0.0.0\n240.0.0.0","172.16.252.1\n0.0.0.0\n8.8.8.8\n192.168.1.0",{"$cut":{"chars":32767,"head":"1.1.1.1\n11.8.2.0\n1.0.0.0\n198.199.101.152\n0.0.0.0\n127.0.0.1\n172.19.0.1\n172.19.0.2\n8.8.8.8\n0.6.11.30\n4.1.1.2\n3.6.0.0\n116.196.74.26\n4.6.1.0\n6.12.1.0\n6.13.7.0\n10.0.0.0\n100.64.0.0\n127.0.0.0\n169.254.0.0\n172.16.0.0\n192.0.0.0\n192.0.2.0\n192.31.196.0\n192.52.193.0\n192.88.99.0\n192.168.0.0\n192.175.48.0\n198.18.0.0\n198.51.100.0\n203.0.113.0\n224.0.0.0\n1.0.1.0\n1.0.2.0\n1.0.8.0\n1.0.32.0\n1.1.0.0\n1.1.2.0\n1.1.4.0\n1.1.8.0\n1.1.16.0\n1.1.32.0\n1.2.0.0\n1.2.2.0\n1.2.4.0\n1.2.8.0\n1.2.16.0\n1.2.32.0\n1.2.64.0\n1.3.0.0\n1.4.1.0\n1.4.2.0\n1.4.4.0\n1.4.8.0\n1.4.16.0\n1.4.32.0\n1.4.64.0\n1.8.0.0\n1.10.0.0\n1.10.8.0\n1.10.11.0\n1.10.12.0\n1.10.16.0\n1.10.32.0\n1.10.64.0\n1.12.0.0\n1.18.128.0\n1.24.0.0\n1.45.0.0\n1.48.0.0\n1.56.0.0\n1.68.0.0\n1.80.0.0\n1.116.0.0\n1.180.0.0\n1.184.0.0\n1.188.0.0\n1.192.0.0\n1.202.0.0\n1.204.0.0\n8.128.0.0\n8.208.64.0\n8.209.0.0\n8.209.8.0\n8.209.12.0\n8.209.16.0\n8.209.32.0\n8.209.128.0\n8.210.0.0\n8.212.0.0\n8.216.0.0\n14.0.0.0\n14.0.12.0\n14.1.0.0\n14.1.24.0\n14.1.96.0\n14.1.108.0\n14.16.0.0\n14.102.128.0\n14.102.156.0\n14.102.180.0\n14.103.0.0\n14.104.0.0\n14.112.0.0\n14.130.0.0\n14.134.0.0\n14.144.0.0\n14.192.60.0\n14.192.76.0\n14.196.0.0\n14.204.0.0\n14.208.0.0\n20.134.160.0\n20.139.160.0\n23.48.214.0\n27.0.128.0\n27.0.160.0\n27.0.188.0\n27.0.204.0\n27.0.208.0\n27.8.0.0\n27.16.0.0\n27.34.232.0\n27.36.0.0\n27.40.0.0\n27.50.40.0\n27.50.128.0\n27.54.72.0\n27.54.152.0\n27.54.192.0\n27.98.208.0\n27.98.224.0\n27.99.128.0\n27.103.0.0\n27.106.128.0\n27.106.204.0\n27.109.32.0\n27.109.124.0\n27.112.0.0\n27.112.80.0\n27.112.112.0\n27.113.128.0\n27.115.0.0\n27.116.44.0\n27.121.72.0\n27.121.120.0\n27.128.0.0\n27.131.220.0\n27.144.0.0\n27.148.0.0\n27.152.0.0\n27.184.0.0\n27.192.0.0\n27.224.0.0\n36.0.0.0\n36.0.8.0\n36.0.16.0\n36.0.32.0\n36.0.64.0\n36.0.128.0\n36.1.0.0\n36.4.0.0\n36.16.0.0\n36.32.0.0\n36.36.0.0\n36.37.0.0\n36.37.36.0\n36.37.39.0\n36.37.40.0\n36.37.48.0\n36.40.0.0\n36.48.0.0\n36.51.0.0\n36.56.0.0\n36.96.0.0\n36.128.0.0\n36.192.0.0\n36.248.0.0\n36.254.0.0\n36.255.116.0\n36.255.128.0\n36.255.164.0\n36.255.172.0\n36.255.176.0\n39.0.0.0\n39.0.2.0\n39.0.4.0\n39.0.8.0\n39.0.16.0\n39.0.32.0\n39.0.64.0\n39.0.128.0\n39.64.0.0\n39.96.0.0\n39.104.0.0\n39.108.0.0\n39.109.120.0\n39.128.0.0\n40.0.176.0\n40.0.247.0\n40.0.248.0\n40.0.252.0\n40.0.255.0\n40.72.0.0\n40.77.136.112\n40.77.236.224\n40.77.254.64\n40.125.128.0\n40.126.64.0\n40.198.10.0\n40.198.16.0\n40.198.24.0\n40.251.225.0\n40.251.227.0\n42.0.0.0\n42.0.8.0\n42.0.16.0\n42.0.24.0\n42.0.32.0\n42.0.128.0\n42.1.0.0\n42.1.32.0\n42.1.48.0\n42.1.56.0\n42.1.128.0\n42.4.0.0\n42.48.0.0\n42.56.0.0\n42.62.0.0\n42.62.128.0\n42.62.160.0\n42.62.180.0\n42.62.184.0\n42.63.0.0\n42.80.0.0\n42.83.64.0\n42.83.80.0\n42.83.88.0\n42.83.96.0\n42.83.128.0\n42.84.0.0\n42.88.0.0\n42.96.64.0\n42.96.96.0\n42.96.108.0\n42.96.112.0\n42.96.128.0\n42.97.0.0\n42.99.0.0\n42.99.64.0\n42.99.96.0\n42.99.112.0\n42.99.120.0\n42.100.0.0\n42.120.0.0\n42.122.0.0\n42.123.0.0\n42.123.36.0\n42.123.40.0\n42.123.48.0\n42.123.64.0\n42.123.128.0\n42.128.0.0\n42.156.0.0\n42.156.36.0\n42.156.40.0\n42.156.48.0\n42.156.64.0\n42.156.128.0\n42.157.0.0\n42.158.0.0\n42.160.0.0\n42.176.0.0\n42.184.0.0\n42.186.0.0\n42.187.0.0\n42.187.64.0\n42.187.96.0\n42.187.112.0\n42.187.120.0\n42.187.128.0\n42.192.0.0\n42.201.0.0\n42.202.0.0\n42.204.0.0\n42.208.0.0\n42.224.0.0\n42.240.0.0\n42.242.0.0\n42.244.0.0\n42.248.0.0\n43.224.12.0\n43.224.24.0\n43.224.44.0\n43.224.52.0\n43.224.56.0\n43.224.64.0\n43.224.72.0\n43.224.80.0\n43.224.100.0\n43.224.144.0\n43.224.160.0\n43.224.176.0\n43.224.184.0\n43.224.200.0\n43.224.208.0\n43.224.216.0\n43.224.240.0\n43.225.76.0\n43.225.84.0\n43.225.120.0\n43.225.140.0\n43.225.172.0\n43.225.180.0\n43.225.208.0\n43.225.216.0\n43.225.224.0\n43.225.240.0\n43.225.252.0\n43.226.32.0\n43.226.64.0\n43.226.96.0\n43.226.112.0\n43.226.120.0\n43.226.128.0\n43.226.192.0\n43.226.208.0\n43.226.236.0\n43.226.240.0\n43.227.0.0\n43.227.8.0\n43.227.32.0\n43.227.64.0\n43.227.96.0\n43.227.104.0\n43.227.136.0\n43.227.144.0\n43.227.152.0\n43.227.160.0\n43.227.176.0\n43.227.188.0\n43.227.192.0\n43.227.232.0\n43.227.248.0\n43.228.0.0\n43.228.64.0\n43.228.76.0\n43.228.100.0\n43.228.116.0\n43.228.120.0\n43.228.132.0\n43.228.136.0\n43.228.148.0\n43.228.152.0\n43.228.188.0\n43.229.40.0\n43.229.48.0\n43.229.56.0\n43.229.96.0\n43.229.120.0\n43.229.136.0\n43.229.144.0\n43.229.168.0\n43.229.176.0\n43.229.192.0\n43.229.216.0\n43.229.232.0\n43.230.20.0\n43.230.32.0\n43"}},"127.0.0.1\n10.15.0.0","127.0.0.1\n10.15.0.0","8.8.8.8\n0.0.0.0\n172.16.252.1\n1.1.1.1\n3.4.39.302\n1.0.0.1\n8.8.4.4"]
["URL",{"$cut":{"chars":32767,"head":"https://issuetracker.google.com/issues/new?component=907884&template=1466542\nhttp://www.w3.org/ns/ttml\nhttp://xmlpull.org/v1/doc/features.html\nhttps://gateway.unityads.unity3d.com/v1\nhttp://gateway.unityads.unity3d.com/v1\nhttps://scar.unityads.unity3d.com/v1/capture-scar-signals\nhttp://\nhttp://schemas.microsoft.com/DRM/2007/03/protocols/AcquireLicense\nhttps://play.google.com\nhttps://play.google.com/\nhttp://whatwg.org/html/common-microsyntaxes.html\nhttp://whatwg.org/html/webappapis.html\nhttps://gist.github.com/atk/1020396\nhttp://whatwg.org/C\nhttps://play.google.com/store/apps/details?id=\nhttps://ms.applovin.com/1.0/sdk/error?\nhttp://developer.android.com/google/play-services/setup.html.\nhttps://monetization-support.applovin.com/hc/en-us/articles/236114328-How-can-I-expose-verbose-logging-for-the-SDK\nhttps://ms.applovin.com/\nhttps://ms.applvn.com/\nhttps://assets.applovin.com/gdpr/flow_v1/gdpr-flow-1.html\nhttps://prod-a.applovin.com\nhttps://rt.applvn.com/4.0/pix\nhttps://a.applovin.com/\nhttps://a.applvn.com/\nhttps://d.applovin.com/\nhttps://d.applvn.com/\nhttps://rt.applovin.com/\nhttps://rt.applvn.com/\nhttps://vid.applovin.com/\nhttps://dash.applovin.com/documentation/mediation/android/getting-started/integration\nhttps://dash.applovin.com/documentation/mediation/unity/getting-started/integration\nhttps://corp.aarki.com/privacy\nhttps://www.adjust.com/terms/privacy-policy/\nhttps://www.applovin.com/privacy/\nhttps://applovin.com.\nhttps://dash.applovin.com/o/account?r=2\nhttps://api.taboola.com/\nhttps://exoplayer.dev/issues/player-accessed-on-wrong-thread\nhttps://x\nhttp://ns.adobe.com/xap/1.0/\nhttps://exoplayer.dev/issues/cleartext-not-permitted\nhttps://aomedia.org/emsg/ID3\nhttps://developer.apple.com/streaming/emsg-id3\nhttp://schemas.applovin.com/android/1.0\nhttp://schemas.android.com/apk/res/android\nhttps://spadsync.com/sync\nhttps://unif-id.ssp.inmobi.com/fetch\nhttps://crash-metrics.sdk.inmobi.com/trace\nhttps://telemetry.sdk.inmobi.com/metrics\nhttps://log-activity.templates.inmobi.com/api/v1/ingest\nhttps://ads.inmobi.com/sdk\nhttps://i.l.inmobicdn.net/sdk/sdk/1058/android/mraid.js\nhttps://i.l.inmobicdn.net/sdk/sdk/OMID/omsdk-v1.3.17.js\nhttps://config.inmobi.com/config-server/v1/config/secure.cfg\nhttps://www.inmobi.com/products/sdk/\nhttp://schemas.android.com/apk/lib/com.inmobi.ads\nhttp://www.google.com\nhttps://c.amazon-adsystem.com/\nhttps://www.amazon.com/dp/\nhttps://prod.cm.publishers.advertising.a2z.com/logrecord/putlog\nhttps://\nhttps://www.amazon.com/gp/mas/dl/android?\nhttps://play.google.com/store/apps/\nhttps://ssdk-va.pangle.io\nhttps://ssdk-sg.pangle.io\nhttps://ssp-events.chartboost.com/track/sdk\nhttp://chartboo.st/publishing\nhttps://live.chartboost.com\nhttps://da.chartboost.com\nhttps://play.google.com/store/apps/details?id=%s\nhttps://sf16-static.i18n-pglstatp.com/obj/ad-pattern-sg/static/images/\nhttps://www.pangleglobal.com/\nhttps://sf16-static.i18n-pglstatp.com/obj/ad-pattern-sg/renderer/package_sg.json\nhttps://sf16-static.i18n-pglstatp.com/obj/ad-pattern-va/renderer/package_va.json\nhttps://%s\nhttps://log.sgsnssdk.com/service/2/app_log/\nhttps://log-mva.isnssdk.com/service/2/app_log/\nhttps://pangolin16.sgsnssdk.com\nhttps://pangolin16.isnssdk.com\nhttps://sf16-fe-tos-sg.i18n-pglstatp.com/obj/ad-pattern-sg/static/images/2023620white.jpeg\nhttps://sf16-scmcdn-sg.ibytedtos.com/goofy/bytecom/resource/tetris/oversea_pi.01f77b3a.js\nhttps://api16-access-sg.pangle.io/api/ad/union/sdk/get_ads/?aid=1371&device_platform=android&version_code=4250\nhttps://p16-sign-sg.tiktokcdn.com/v0201/fd71964ced204df586b63b9d8fa3198a\nhttps://api16-endcard-pack-sg.pangle.io/union/endcard/1695802627329057/?rit=901121365&req_id=68ebda22-9cbd-423f-98ce-78f571b6308bu5599&ad_sdk_version=3.6.0.0&os=android&lang=zh&union_imei=702f89a658bd1f189c6e8e24587cd9ce&app_version=%E8%A1%A5%E5%85%85%E4%B8%AD&app_name=&developer_name=%E8%A1%A5%E5%85%85%E4%B8%AD%EF%BC%8C%E5%8F%AF%E4%BA%8E%E5%BA%94%E7%94%A8%E5%AE%98%E7%BD%91%E6%9F%A5%E7%9C%8B&is_dsp=False&lpt=1&style_id=1535776&comment_num=92&like_num=109&share_num=96\nhttps://sf16-scmcdn-sg.ibytedtos.com/obj/goofy-sg/ad/pangle/ho"}},"https://issuetracker.google.com/issues/new?component=413107&template=1096568\nhttps://\nhttp://\nhttps://shadowsocks.org/acl/android/v1/\nhttps://shadowsocks\nhttps://%simpression.%s\nhttps://%s/%s\nhttps://%sattr.%s/api/v\nhttps://%sadrevenue.%s/api/v2/generic/v6.14.0/android?app_id=\nhttps://%sadrevenue.%s/api/v2/log/AdImpression/v6.14.0/android?app_id=\nhttps://%sconversions.%s/api/v\nhttps://%slaunches.%s/api/v\nhttps://%sinapps.%s/api/v\nhttps://%smonitorsdk.%s/api/remote-debug/v2.0?app_id=\nhttps://%svalidate.%s/api/v\nhttps://aps-webhandler.appsflyer.com/api/trigger\nhttps://%ssdk-services.%s/validate-android-signature\nhttps://%sgcdsdk.%s/install_data/v5.0/\nhttps://%sonelink.%s/shortlink-sdk/v2\nhttps://%svalidate-and-log.%s/api/v1.0/android/validateAndLog?app_id=\nhttps://%sars.%s/api/v2/android/validate_subscription?app_id=\nhttps://%sars.%s/api/v2/android/validate_subscription_v2?app_id=\nhttps://%smonitorsdk.%s/remote-debug/exception-manager\nhttps://%scdn-%ssettings.%s/android/v1/%s/settings\nhttps://%scdn-%stestsettings.%s/android/v1/%s/settings\nhttps://%sregister.%s/api/v\nhttps://%sapp.%s\nhttps://static.snapillustrates.com/snap/terms_of_service.html\nhttps://static.snapillustrates.com/snap/privacy_policy_snapvpn.html\nhttps://play.google.com/store/account/subscriptions\nhttps://pagead2.googlesyndication.com/pagead/gen_204?id=gmob-apps\nhttps://googlemobileadssdk.page.link/admob-android-update-manifest\nhttps://googlemobileadssdk.page.link/ad-manager-android-update-manifest.\nhttps://support.google.com/dfp_premium/answer/7160685\nhttps://www.googleadservices.com/pagead/conversion/app/deeplink?id_type=adid&sdk_version=%s&rdid=%s&bundleid=%s&retry=%s\nhttps://goo.gl/NAOOOI.\nhttps://goo.gl/NAOOOI\nhttps://www.google.com\nhttps://app-measurement.com/a\nhttps://googlemobileadssdk.page.link/admob-interstitial-policies\nhttps://googleads.g.doubleclick.net/mads/static/mad/sdk/native/production/native_ads.js\nhttps://googleads.g.doubleclick.net/mads/static/mad/sdk/native/sdk-core-v40-loader.html\nhttps://googleads.g.doubleclick.net/mads/static/mad/sdk/native/production/sdk-core-v40-impl.js\nhttps://developers.google.com/admob/android/test-ads\nhttps://googleads.g.doubleclick.net/mads/static/mad/sdk/native/production/sdk-core-v40-impl.html\nhttps://googleads.g.doubleclick.net/mads/static/mad/sdk/native/production/mraid/v3/mraid_app_banner.js\nhttps://googleads.g.doubleclick.net/mads/static/mad/sdk/native/production/mraid/v3/mraid_app_expanded_banner.js\nhttps://googleads.g.doubleclick.net/mads/static/mad/sdk/native/production/mraid/v3/mraid_app_interstitial.js\nhttps://googleads.g.doubleclick.net\nhttps://googleads.g.doubleclick.net/mads/static/mad/sdk/native/native_ads.html\nhttps://imasdk.googleapis.com/admob/sdkloader/native_video.html\nhttps://www.google.com/dfp/linkDevice\nhttps://www.google.com/dfp/inAppPreview\nhttps://www.google.com/dfp/debugSignals\nhttps://www.google.com/dfp/sendDebugData\nhttps://pagead2.googlesyndication.com/pagead/ping?e=2&f=1\nhttps://admob-gmats.uc.r.appspot.com/\nhttps://csi.gstatic.com/csi\nhttp://www.example.com\nhttps://developer.android.com/guide/topics/media/issues/cleartext-not-permitted\nhttp://www.google.com\nhttps://adservice.google.com/getconfig/pubvendors\nhttps://developer.android.com/guide/topics/media/issues/player-accessed-on-wrong-thread\nhttps://goo.gl/J1sWQy\nhttps://fundingchoicesmessages.google.com/a/consent\nhttps://www.googleapis.com/auth/games.firstparty\nhttps://www.googleapis.com/auth/appstate\nhttps://www.googleapis.com/auth/datastoremobile\nhttps://www.googleapis.com/auth/drive.appdata\nhttps://www.googleapis.com/auth/drive.apps\nhttps://www.googleapis.com/auth/drive.file\nhttps://www.googleapis.com/auth/drive\nhttps://www.googleapis.com/auth/games\nhttps://www.googleapis.com/auth/games_lite\nhttps://www.googleapis.com/auth/userinfo.email\nhttps://www.googleapis.com/auth/userinfo.profile\nhttps://www.googleapis.com/auth/plus.login\nhttps://www.googleapis.com/auth/plus.me\nhttps://plus.google.com/\nhttps://developer.android.com/reference/com/google/android/play/core/install/model/InstallErrorCode\nhttp://schemas.android.com/apk/res-auto\nhttp://schemas.android.com/apk/res/android\nhttps://firebase.google.com/support/privacy/init-options.\nhttps://%s/%s/%s\nhttps://firebaseremoteconfig.googleapis.com/v1/projects/%s/namespaces/%s:fetch\nhttps://firebase-settings.crashlytics.com/spi/v2/platforms/android/gmp/%s/settings\nhttps://apps.samsung.com/appquery/appDetail.as?appId=\nhttps://play.google.com/store/apps/details?id=\nhttps://galaxystore.samsung.com/detail/\nhttps://m.facebook.com/\nhttps://play.google.com/store/account/subscriptions?sku=%s&package=%s\nhttp://ip-api.com/json\nhttps://www.facebook.com\nhttps://www.youtube.com\nhttps://www.baidu.com\nhttps://yandex.com\nhttps://feedback.allconnected.in/fb/v1/reports/\nhttps://sdk.allconnected.in/\nhttps://www.\nhttps://%s/%s?v=1&rid=%s&un=%s\nhttps://%s/dns-query\nhttp://localhost/\nhttps://192.241.201.195/\nhttps://138.68.27.73/\nhttps://128.199.143.162/\nhttps://104.236.57.206/\nhttps://publicsuffix.org/list/public_suffix_list.dat\nhttps://mozilla.org/MPL/2.0/\nhttps://github.com/shadowsocks/shadowsocks-android/blob/master/.github/faq.md\nhttps://snapvpn.firebaseio.com\nhttp://schemas.android.com/aapt\nhttps://github.com/shadowsocks/shadowsocks-android/blob/master/.github/faq.ru.md","http://\nhttps://www.example.com\nhttp://schemas.android.com/apk/res/android\nhttps://\nhttps://issuetracker.google.com/issues/new?component=413107&template=1096568\nhttp://www.apache.org/licenses/LICENSE-2.0\nhttp://schemas.android.com/aapt\nhttp://schemas.android.com/apk/res-auto","https://issuetracker.google.com/issues/116541301\nhttp://\nhttps://www.example.com\nhttp://schemas.android.com/apk/res/android\nhttps://\nhttps://issuetracker.google.com/issues/new?component=413107&template=1096568\nhttps://issuetracker.google.com/issues/new?component=413106\nhttps://issuetracker.google.com/issues/new?component=907884&template=1466542\nhttps://in.appcenter.ms\nhttps://mobile.events.data.microsoft.com/OneCollector/1.0\nhttp://89.117.48.52/startvpn_api/public/app-api-v1/wireguard-user-con\nhttp://89.117.48.52/\nhttp://checkip.amazonaws.com/\nhttp://89.117.48.52/startvpn_api/public/app-api-v1/verify-payment\nhttps://api.vpnstart.net/app-api-v1/login\nhttps://api.vpnstart.net/app-api-v1/verify-payment\nhttps://google.com\nhttps://vpnstart.net/privacy-policy\nhttps://vpnstart.net/term\nhttps://pagead2.googlesyndication.com/pagead/gen_204?id=gmob-apps\nhttps://googlemobileadssdk.page.link/admob-android-update-manifest\nhttps://googlemobileadssdk.page.link/ad-manager-android-update-manifest.\nhttps://support.google.com/dfp_premium/answer/7160685\nhttp://www.example.com\nhttps://googleads.g.doubleclick.net/mads/static/mad/sdk/native/production/native_ads.js\nhttps://googleads.g.doubleclick.net/mads/static/mad/sdk/native/sdk-core-v40-loader.html\nhttps://googleads.g.doubleclick.net/mads/static/mad/sdk/native/production/sdk-core-v40-impl.js\nhttps://googlemobileadssdk.page.link/admob-interstitial-policies\nhttps://csi.gstatic.com/csi\nhttps://developers.google.com/admob/android/test-ads\nhttps://developer.android.com/guide/topics/media/issues/cleartext-not-permitted\nhttp://www.google.com\nhttps://googleads.g.doubleclick.net/mads/static/mad/sdk/native/production/sdk-core-v40-impl.html\nhttps://googleads.g.doubleclick.net/mads/static/mad/sdk/native/production/mraid/v3/mraid_app_banner.js\nhttps://googleads.g.doubleclick.net/mads/static/mad/sdk/native/production/mraid/v3/mraid_app_expanded_banner.js\nhttps://googleads.g.doubleclick.net/mads/static/mad/sdk/native/production/mraid/v3/mraid_app_interstitial.js\nhttps://googleads.g.doubleclick.net\nhttps://googleads.g.doubleclick.net/mads/static/mad/sdk/native/native_ads.html\nhttps://imasdk.googleapis.com/admob/sdkloader/native_video.html\nhttps://www.google.com/dfp/linkDevice\nhttps://www.google.com/dfp/inAppPreview\nhttps://www.google.com/dfp/debugSignals\nhttps://www.google.com/dfp/sendDebugData\nhttps://pagead2.googlesyndication.com/pagead/ping?e=2&f=1\nhttps://admob-gmats.uc.r.appspot.com/\nhttps://developer.android.com/guide/topics/media/issues/player-accessed-on-wrong-thread\nhttps://adservice.google.com/getconfig/pubvendors\nhttps://goo.gl/J1sWQy\nhttps://fundingchoicesmessages.google.com/a/consent\nhttps://www.googleapis.com/auth/games.firstparty\nhttps://www.googleapis.com/auth/appstate\nhttps://www.googleapis.com/auth/datastoremobile\nhttps://www.googleapis.com/auth/drive.appdata\nhttps://www.googleapis.com/auth/drive.apps\nhttps://www.googleapis.com/auth/drive.file\nhttps://www.googleapis.com/auth/drive\nhttps://www.googleapis.com/auth/games\nhttps://www.googleapis.com/auth/games_lite\nhttps://www.googleapis.com/auth/userinfo.email\nhttps://www.googleapis.com/auth/userinfo.profile\nhttps://www.googleapis.com/auth/plus.login\nhttps://www.googleapis.com/auth/plus.me\nhttps://plus.google.com/\nhttp://schemas.android.com/apk/res-auto\nhttps://%s:%s\nhttp://localhost/\nhttps://play.google.com/store\nhttps://publicsuffix.org/list/public_suffix_list.dat\nhttps://mozilla.org/MPL/2.0/\nhttp://schemas.android.com/aapt","http://schemas.android.com/apk/res/android\nhttp://\nhttps://\nhttp://schemas.android.com/apk/res-auto\nhttp://schemas.android.com/aapt","https://www.quarkvpn.com/privacy.html\nhttps://t.me/joinchat/XmYO2LrduPUxMDdl\nhttps://chat.whatsapp.com/FpjqQfVF3I67HZiYCnaJUj\nhttps://play.google.com/store/apps/details?id=\nhttp://ip-api.com/json/\nhttp://ns.adobe.com/xap/1.0/\nhttp://schemas.android.com/apk/res/android\nhttps://issuetracker.google.com/issues/new?component=413107&template=1096568\nhttp://ip-api.com/json\nhttps://\nhttps://api.brinkoutside.com\nhttps://scar.unityads.unity3d.com/v1/capture-scar-signals\nhttp://\nhttps://ms.applovin.com/1.0/sdk/error\nhttp://developer.android.com/google/play-services/setup.html.\nhttps://monetization-support.applovin.com/hc/en-us/articles/236114328-How-can-I-expose-verbose-logging-for-the-SDK\nhttps://ms.applovin.com/\nhttps://ms.applvn.com/\nhttps://assets.applovin.com/gdpr/flow_v1/gdpr-flow-1.html\nhttps://prod-a.applovin.com\nhttps://rt.applvn.com/4.0/pix\nhttps://a.applovin.com/\nhttps://a.applvn.com/\nhttps://d.applovin.com/\nhttps://d.applvn.com/\nhttps://rt.applovin.com/\nhttps://rt.applvn.com/\nhttps://vid.applovin.com/\nhttps://dash.applovin.com/documentation/mediation/android/getting-started/integration\nhttps://dash.applovin.com/documentation/mediation/unity/getting-started/integration\nhttp://www.corp.aarki.com/privacy\nhttps://www.adjust.com/terms/privacy-policy/\nhttps://www.applovin.com/privacy/\nhttps://developer.android.com/training/articles/security-config\nhttps://applovin.com.\nhttps://api.taboola.com/\nhttps://exoplayer.dev/issues/player-accessed-on-wrong-thread\nhttp://schemas.microsoft.com/DRM/2007/03/protocols/AcquireLicense\nhttps://x\nhttps://exoplayer.dev/issues/cleartext-not-permitted\nhttp://www.w3.org/ns/ttml\nhttps://aomedia.org/emsg/ID3\nhttps://developer.apple.com/streaming/emsg-id3\nhttp://schemas.applovin.com/android/1.0\nhttps://dwxjayoxbnyrr.cloudfront.net/amazon-ads.viewablejs\nhttp://schemas.android.com/apk/lib/com.amazon.device.ads\nhttp://schemas.android.com/apk/res/\nhttp://code.google.com/p/android/issues/detail?id=10789\nhttp://mads.amazon-adsystem.com/\nhttp://amazon-adsystem.com\nhttps://yandex.com/dev/appmetrica/doc/mobile-sdk-dg/concepts/android-initialize.html\nhttps://startup.mobile.yandex.net/\nhttp://xmlpull.org/v1/doc/features.html\nhttps://yandex.ru\nhttps://yandex.ru/dev/mobile-ads/doc/android/quick-start/android-ads-component.html\nhttps://yandex.ru/dev/mobile-ads/doc/intro/changelog-android.html\nhttps://mobile.yandexadexchange.net\nhttps://yandex.ru/appcry\nhttps://market.android\nhttp://market.android\nhttps://play.google\nhttp://play.google\nhttps://map\nhttp://map\nhttps://maps\nhttp://maps\nhttp://mobile.maps\nhttp://m.maps\nhttp://maps.yandex.ru\nhttps://bds-va.byteoversea.com\nhttps://bds-sg.byteoversea.com\nhttps://sdfp-va.byteoversea.com\nhttps://sdfp-sg.byteoversea.com\nhttps://pangle-global.io/\nhttps://p0.ipstatp.com/origin/ad-site-i18n-sg/202011255d0d219920adb0fd474eac28\nhttps://p0.ipstatp.com/origin/v0201/fd71964ced204df586b63b9d8fa3198a.webp\nhttps://p16-sign-sg.tiktokcdn.com/v0201/fd71964ced204df586b63b9d8fa3198a\nhttps://api16-endcard-pack-sg.pangle.io/union/endcard/1695802627329057/?rit=901121365&req_id=68ebda22-9cbd-423f-98ce-78f571b6308bu5599&ad_sdk_version=3.6.0.0&os=android&lang=zh&union_imei=702f89a658bd1f189c6e8e24587cd9ce&app_version=%E8%A1%A5%E5%85%85%E4%B8%AD&app_name=&developer_name=%E8%A1%A5%E5%85%85%E4%B8%AD%EF%BC%8C%E5%8F%AF%E4%BA%8E%E5%BA%94%E7%94%A8%E5%AE%98%E7%BD%91%E6%9F%A5%E7%9C%8B&is_dsp=False&lpt=1&style_id=1535776&comment_num=92&like_num=109&share_num=96\nhttps://sf16-scmcdn-sg.ibytedtos.com/obj/goofy-sg/ad/pangle/homepage/_next/static/assets/images/reward.c7cdf2f9.mp4\nhttps://lf-hs-sg.ibytedtos.com/obj/union-platform-i18n/union_platform_gdpr_607_en.html\nhttps://pangolin16.sgsnssdk.com\nhttps://pangolin16.isnssdk.com\nhttps://log.sgsnssdk.com/service/2/app_log/\nhttps://log-mva.isnssdk.com/service/2/app_log/\nhttps://%s\nhttps://sf-tb-sg.ibytedtos.com/obj/ad-pattern-sg/renderer/package_sg.json\nhttps://sf16-muse-va.ibytedtos.com/obj/ad-pattern-va/renderer/package_va.json\nhttps://config.ads.vungle.com/api/v5/\nhttps://api.vungle.com/\nhttps://vungle.com/privacy/\nhttps://adc3-launch.adcolony.com/v4/launch\nhttps://wd.adcolony.com/logs\nhttps://developers.facebook.com/docs/app-events/getting-started-app-events-android\nhttps://developers.facebook.com/docs/android/getting-started\nhttps://developers.facebook.com/docs/sharing/android\nhttps://graph.%s\nhttps://graph-video.%s\nhttps://developers.facebook.com/docs/android/troubleshooting/\nhttps://facebook.com\nhttps://www.facebook.com/.well-known/oauth/openid/keys/\nhttps://facebook.com/device?user_code=%1\nhttps://www.facebook.com/audiencenetwork/bidding_kit_logging\nhttps://an.facebook.com/placementbid.ortb\nhttps://www.facebook.com/audiencenetwork/nurl/?partner=\nhttps://cloud.cpatrk.net/configcloud/rest/sdk/gdprCheck\nhttps://ap.cpatrk.net/u/a/v1\nhttps://push.cpatrk.net/push/v1\nhttps://cloud.cpatrk.net/configcloud/rest/sdk/match\nhttps://outcome-crash-report.supersonicads.com/reporter\nhttps://outcome-ssp.supersonicads.com/mediation?adUnit=3\nhttps://outcome-arm-ext-med-ext.sonic-us.supersonicads.com/aemData\nhttps://outcome-ssp.supersonicads.com/mediation?adUnit=2\nhttps://init.supersonicads.com/sdk/v\nhttps://pagead2.googlesyndication.com/pagead/gen_204?id=gmob-apps\nhttps://googlemobileadssdk.page.link/admob-android-update-manifest\nhttps://googlemobileadssdk.page.link/ad-manager-android-update-manifest.\nhttps://support.google.com/dfp_premium/answer/7160685\nhttps://www.google.com\nhttps://www.googleadservices.com/pagead/conversion/app/deeplink?id_type=adid&sdk_version=%s&rdid=%s&bundleid=%s&retry=%s\nhttps://goo.gl/NAOOOI.\nhttps://goo.gl/NAOOOI\nhttps://app-measurement.com/a\nhttps://googleads.g.doubleclick.net/mads/static/mad/sdk/native/production/native_ads.js\nhttps://googleads.g.doubleclick.net/mads/static/mad/sdk/native/sdk-core-v40-loader.html\nhttps://googleads.g.doubleclick.net/mads/static/mad/sdk/native/production/sdk-core-v40-impl.js\nhttps://adservice.google.com/getconfig/pubvendors\nhttp://www.google.com\nhttps://csi.gstatic.com/csi\nhttp://www.example.com\nhttps://googlemobileadssdk.page.link/admob-interstitial-policies\nhttps://developers.google.com/admob/android/test-ads\nhttps://googleads.g.doubleclick.net/mads/static/mad/sdk/native/production/sdk-core-v40-impl.html\nhttps://googleads.g.doubleclick.net/mads/static/mad/sdk/native/production/mraid/v3/mraid_app_banner.js\nhttps://googleads.g.doubleclick.net/mads/static/mad/sdk/native/production/mraid/v3/mraid_app_expanded_banner.js\nhttps://googleads.g.doubleclick.net/mads/static/mad/sdk/native/production/mraid/v3/mraid_app_interstitial.js\nhttps://googleads.g.doubleclick.net\nhttps://googleads.g.doubleclick.net/mads/static/mad/sdk/native/native_ads.html\nhttps://imasdk.googleapis.com/admob/sdkloader/native_video.html\nhttps://www.google.com/dfp/linkDevice\nhttps://www.google.com/dfp/inAppPreview\nhttps://www.google.com/dfp/debugSignals\nhttps://www.google.com/dfp/sendDebugData\nhttps://pagead2.googlesyndication.com/pagead/ping?e=2&f=1\nhttps://admob-gmats.uc.r.appspot.com/\nhttps://firebase.google.com/docs/analytics\nhttps://fundingchoicesmessages.google.com/a/consent\nhttps://www.googleapis.com/auth/games.firstparty\nhttps://www.googleapis.com/auth/appstate\nhttps://www.googleapis.com/auth/datastoremobile\nhttps://www.googleapis.com/auth/drive.appdata\nhttps://www.googleapis.com/auth/drive.apps\nhttps://www.googleapis.com/auth/drive.file\nhttps://www.googleapis.com/auth/drive\nhttps://www.googleapis.com/auth/games\nhttps://www.googleapis.com/auth/games_lite\nhttps://www.googleapis.com/auth/userinfo.email\nhttps://www.googleapis.com/auth/userinfo.profile\nhttps://www.googleapis.com/auth/plus.login\nhttps://www.googleapis.com/auth/plus.me\nhttps://plus.google.com/\nhttps://developer.android.com/reference/com/google/android/play/core/assetpacks/model/AssetPackErrorCode.html\nhttp://schemas.android.com/apk/res-auto\nhttps://firebase.google.com/support/privacy/init-options.\nhttps://%s/%s/%s\nhttps://firebaseremoteconfig.googleapis.com/v1/projects/%s/namespaces/%s:fetch\nhttps://firebaseremoteconfigrealtime.googleapis.com/v1/projects/%s/namespaces/%s:streamFetchInvalidations\nhttp://www.slf4j.org/codes.html\nhttps://play.google.com/store\nhttps://www.iana.org/assignments/media-types/\nhttps://github.com/gfwlist/gfwlist/blob/master/gfwlist.txt\nhttps://publicsuffix.org/list/public_suffix_list.dat\nhttps://mozilla.org/MPL/2.0/\nhttps://github.com/shadowsocks/shadowsocks-android/blob/master/.github/faq.md\nhttps://app-4340a.firebaseio.com\nhttp://schemas.android.com/aapt\nhttps://developer.android.com/studio/build/shrink-code.html\nhttp://schemas.android.com/tools\nhttps://github.com/shadowsocks/shadowsocks-android/blob/master/.github/faq.ru.md\nhttps://socks123.azureedge.net/get.php","http://\nhttps://www.example.com\nhttp://schemas.android.com/apk/res/android\nhttps://\nhttps://pagead2.googlesyndication.com/pagead/gen_204?id=gmob-apps\nhttps://www.googleapis.com/auth/games_lite\nhttps://www.googleapis.com/auth/games\nhttp://www.example.com\nhttps://googleads.g.doubleclick.net/mads/static/mad/sdk/native/production/sdk-core-v40-impl.html\nhttps://googleads.g.doubleclick.net/mads/static/mad/sdk/native/production/mraid/v3/mraid_app_banner.js\nhttps://googleads.g.doubleclick.net/mads/static/mad/sdk/native/production/mraid/v3/mraid_app_expanded_banner.js\nhttps://googleads.g.doubleclick.net/mads/static/mad/sdk/native/production/mraid/v3/mraid_app_interstitial.js\nhttps://googleads.g.doubleclick.net/mads/static/mad/sdk/native/native_ads.html\nhttps://imasdk.googleapis.com/admob/sdkloader/native_video.html\nhttps://www.google.com/dfp/linkDevice\nhttps://www.google.com/dfp/inAppPreview\nhttps://www.google.com/dfp/debugSignals\nhttps://www.google.com/dfp/sendDebugData\nhttps://googlemobileadssdk.page.link/admob-android-update-manifest\nhttps://googlemobileadssdk.page.link/ad-manager-android-update-manifest.\nhttp://www.google.com\nhttps://support.google.com/dfp_premium/answer/7160685\nhttps://googlemobileadssdk.page.link/admob-interstitial-policies\nhttps://adservice.google.com/getconfig/pubvendors\nhttps://googleads.g.doubleclick.net/mads/static/mad/sdk/native/production/native_ads.js\nhttps://googleads.g.doubleclick.net/mads/static/mad/sdk/native/sdk-core-v40-loader.html\nhttps://googleads.g.doubleclick.net/mads/static/mad/sdk/native/production/sdk-core-v40-impl.js\nhttps://csi.gstatic.com/csi\nhttps://goo.gl/J1sWQy\nhttps://www.googleapis.com/auth/games.firstparty\nhttps://www.googleapis.com/auth/fitness.blood_pressure.read\nhttps://www.googleapis.com/auth/datastoremobile\nhttps://www.googleapis.com/auth/fitness.nutrition.read\nhttps://www.googleapis.com/auth/fitness.activity.write\nhttps://www.googleapis.com/auth/fitness.oxygen_saturation.write\nhttps://www.googleapis.com/auth/fitness.reproductive_health.read\nhttps://www.googleapis.com/auth/fitness.body_temperature.read\nhttps://www.googleapis.com/auth/drive\nhttps://www.googleapis.com/auth/fitness.activity.read\nhttps://www.googleapis.com/auth/fitness.location.write\nhttps://www.googleapis.com/auth/fitness.oxygen_saturation.read\nhttps://www.googleapis.com/auth/drive.file\nhttps://www.googleapis.com/auth/fitness.nutrition.write\nhttps://www.googleapis.com/auth/fitness.body_temperature.write\nhttps://www.googleapis.com/auth/fitness.blood_glucose.read\nhttps://www.googleapis.com/auth/fitness.location.read\nhttps://www.googleapis.com/auth/fitness.reproductive_health.write\nhttps://www.googleapis.com/auth/plus.me\nhttps://www.googleapis.com/auth/fitness.blood_glucose.write\nhttps://www.googleapis.com/auth/fitness.body.read\nhttps://www.googleapis.com/auth/drive.apps\nhttps://www.googleapis.com/auth/fitness.body.write\nhttps://www.googleapis.com/auth/appstate\nhttps://www.googleapis.com/auth/drive.appdata\nhttps://www.googleapis.com/auth/plus.login\nhttps://www.googleapis.com/auth/fitness.blood_pressure.write\nhttps://plus.google.com/\nhttp://schemas.android.com/apk/res-auto\nhttps://docs.google.com/spreadsheet/formResponse?formkey=%s&ifq\nhttp://forum.xda-developers.com/showthread.php?t=2616121\nhttps://github.com/cernekee/ics-openconnect\nhttps://www.transifex.com/projects/p/ics-openconnect/\nhttp://code.google.com/p/ics-openvpn/\nhttp://www.infradead.org/openconnect\nhttp://www.gnutls.org/\nhttps://gmplib.org/\nhttp://www.lysator.liu.se/\nhttp://www.xmlsoft.org/\nhttp://www.nongnu.org/oath-toolkit/\nhttp://stoken.sf.net/\nhttp://libtom.org/\nhttp://curl.haxx.se/\nhttps://vpn.example.com/my-group-url\nhttp://127.0.0.1/securid\nhttp://127.0.0.1/securid/ctf?ctfData=213797568467227240150540165305516771132574111177500436764173125710437026671675121\nhttp://forum.xda-developers.com/showpost.php?p=52119253&\nhttp://127.0.0.1/securid/\nhttp://forum.xda-developers.com/xposed/xposed-installer-versions-changelog-t2714053\nhttp://schemas.android.com/aapt","http://\nhttps://www.example.com\nhttp://schemas.android.com/apk/res/android\nhttps://\nhttps://pagead2.googlesyndication.com/pagead/gen_204?id=gmob-apps\nhttps://www.googleapis.com/auth/games_lite\nhttps://www.googleapis.com/auth/games\nhttp://www.example.com\nhttps://googleads.g.doubleclick.net/mads/static/mad/sdk/native/production/sdk-core-v40-impl.html\nhttps://googleads.g.doubleclick.net/mads/static/mad/sdk/native/production/mraid/v3/mraid_app_banner.js\nhttps://googleads.g.doubleclick.net/mads/static/mad/sdk/native/production/mraid/v3/mraid_app_expanded_banner.js\nhttps://googleads.g.doubleclick.net/mads/static/mad/sdk/native/production/mraid/v3/mraid_app_interstitial.js\nhttps://googleads.g.doubleclick.net/mads/static/mad/sdk/native/native_ads.html\nhttps://imasdk.googleapis.com/admob/sdkloader/native_video.html\nhttps://www.google.com/dfp/linkDevice\nhttps://www.google.com/dfp/inAppPreview\nhttps://www.google.com/dfp/debugSignals\nhttps://www.google.com/dfp/sendDebugData\nhttps://googlemobileadssdk.page.link/admob-android-update-manifest\nhttps://googlemobileadssdk.page.link/ad-manager-android-update-manifest.\nhttp://www.google.com\nhttps://support.google.com/dfp_premium/answer/7160685\nhttps://googlemobileadssdk.page.link/admob-interstitial-policies\nhttps://adservice.google.com/getconfig/pubvendors\nhttps://googleads.g.doubleclick.net/mads/static/mad/sdk/native/production/native_ads.js\nhttps://googleads.g.doubleclick.net/mads/static/mad/sdk/native/sdk-core-v40-loader.html\nhttps://googleads.g.doubleclick.net/mads/static/mad/sdk/native/production/sdk-core-v40-impl.js\nhttps://csi.gstatic.com/csi\nhttps://goo.gl/J1sWQy\nhttps://www.googleapis.com/auth/games.firstparty\nhttps://www.googleapis.com/auth/fitness.blood_pressure.read\nhttps://www.googleapis.com/auth/datastoremobile\nhttps://www.googleapis.com/auth/fitness.nutrition.read\nhttps://www.googleapis.com/auth/fitness.activity.write\nhttps://www.googleapis.com/auth/fitness.oxygen_saturation.write\nhttps://www.googleapis.com/auth/fitness.reproductive_health.read\nhttps://www.googleapis.com/auth/fitness.body_temperature.read\nhttps://www.googleapis.com/auth/drive\nhttps://www.googleapis.com/auth/fitness.activity.read\nhttps://www.googleapis.com/auth/fitness.location.write\nhttps://www.googleapis.com/auth/fitness.oxygen_saturation.read\nhttps://www.googleapis.com/auth/drive.file\nhttps://www.googleapis.com/auth/fitness.nutrition.write\nhttps://www.googleapis.com/auth/fitness.body_temperature.write\nhttps://www.googleapis.com/auth/fitness.blood_glucose.read\nhttps://www.googleapis.com/auth/fitness.location.read\nhttps://www.googleapis.com/auth/fitness.reproductive_health.write\nhttps://www.googleapis.com/auth/plus.me\nhttps://www.googleapis.com/auth/fitness.blood_glucose.write\nhttps://www.googleapis.com/auth/fitness.body.read\nhttps://www.googleapis.com/auth/drive.apps\nhttps://www.googleapis.com/auth/fitness.body.write\nhttps://www.googleapis.com/auth/appstate\nhttps://www.googleapis.com/auth/drive.appdata\nhttps://www.googleapis.com/auth/plus.login\nhttps://www.googleapis.com/auth/fitness.blood_pressure.write\nhttps://plus.google.com/\nhttp://schemas.android.com/apk/res-auto\nhttps://docs.google.com/spreadsheet/formResponse?formkey=%s&ifq\nhttp://forum.xda-developers.com/showthread.php?t=2616121\nhttps://github.com/cernekee/ics-openconnect\nhttps://www.transifex.com/projects/p/ics-openconnect/\nhttp://code.google.com/p/ics-openvpn/\nhttp://www.infradead.org/openconnect\nhttp://www.gnutls.org/\nhttps://gmplib.org/\nhttp://www.lysator.liu.se/\nhttp://www.xmlsoft.org/\nhttp://www.nongnu.org/oath-toolkit/\nhttp://stoken.sf.net/\nhttp://libtom.org/\nhttp://curl.haxx.se/\nhttps://vpn.example.com/my-group-url\nhttp://127.0.0.1/securid\nhttp://127.0.0.1/securid/ctf?ctfData=213797568467227240150540165305516771132574111177500436764173125710437026671675121\nhttp://forum.xda-developers.com/showpost.php?p=52119253&\nhttp://127.0.0.1/securid/\nhttp://forum.xda-developers.com/xposed/xposed-installer-versions-changelog-t2714053\nhttp://schemas.android.com/aapt","https://www.\nhttps://itemb.supernetobjects.com/terms_of_service.html\nhttps://itemb.supernetobjects.com/privacy_policy.html\nhttp://\nhttps://\nhttps://%s/dns-query\nhttps://%simpression.%s\nhttps://%s/%s\nhttps://%sattr.%s/api/v\nhttps://%sadrevenue.%s/api/v2/generic/v6.14.0/android?app_id=\nhttps://%sadrevenue.%s/api/v2/log/AdImpression/v6.14.0/android?app_id=\nhttps://%sconversions.%s/api/v\nhttps://%slaunches.%s/api/v\nhttps://%sinapps.%s/api/v\nhttps://%smonitorsdk.%s/api/remote-debug/v2.0?app_id=\nhttps://%svalidate.%s/api/v\nhttps://aps-webhandler.appsflyer.com/api/trigger\nhttps://%ssdk-services.%s/validate-android-signature\nhttps://%sgcdsdk.%s/install_data/v5.0/\nhttps://%sonelink.%s/shortlink-sdk/v2\nhttps://%svalidate-and-log.%s/api/v1.0/android/validateAndLog?app_id=\nhttps://%sars.%s/api/v2/android/validate_subscription?app_id=\nhttps://%sars.%s/api/v2/android/validate_subscription_v2?app_id=\nhttps://%smonitorsdk.%s/remote-debug/exception-manager\nhttps://%scdn-%ssettings.%s/android/v1/%s/settings\nhttps://%scdn-%stestsettings.%s/android/v1/%s/settings\nhttps://%sregister.%s/api/v\nhttps://%sapp.%s\nhttps://pagead2.googlesyndication.com/pagead/gen_204?id=gmob-apps\nhttps://googlemobileadssdk.page.link/admob-android-update-manifest\nhttps://googlemobileadssdk.page.link/ad-manager-android-update-manifest.\nhttps://support.google.com/dfp_premium/answer/7160685\nhttps://www.googleadservices.com/pagead/conversion/app/deeplink?id_type=adid&sdk_version=%s&rdid=%s&bundleid=%s&retry=%s\nhttps://goo.gl/NAOOOI.\nhttps://goo.gl/NAOOOI\nhttps://www.google.com\nhttps://app-measurement.com/a\nhttps://googlemobileadssdk.page.link/admob-interstitial-policies\nhttps://googleads.g.doubleclick.net/mads/static/mad/sdk/native/production/native_ads.js\nhttps://googleads.g.doubleclick.net/mads/static/mad/sdk/native/sdk-core-v40-loader.html\nhttps://googleads.g.doubleclick.net/mads/static/mad/sdk/native/production/sdk-core-v40-impl.js\nhttps://developers.google.com/admob/android/test-ads\nhttps://googleads.g.doubleclick.net/mads/static/mad/sdk/native/production/sdk-core-v40-impl.html\nhttps://googleads.g.doubleclick.net/mads/static/mad/sdk/native/production/mraid/v3/mraid_app_banner.js\nhttps://googleads.g.doubleclick.net/mads/static/mad/sdk/native/production/mraid/v3/mraid_app_expanded_banner.js\nhttps://googleads.g.doubleclick.net/mads/static/mad/sdk/native/production/mraid/v3/mraid_app_interstitial.js\nhttps://googleads.g.doubleclick.net\nhttps://googleads.g.doubleclick.net/mads/static/mad/sdk/native/native_ads.html\nhttps://imasdk.googleapis.com/admob/sdkloader/native_video.html\nhttps://www.google.com/dfp/linkDevice\nhttps://www.google.com/dfp/inAppPreview\nhttps://www.google.com/dfp/debugSignals\nhttps://www.google.com/dfp/sendDebugData\nhttps://pagead2.googlesyndication.com/pagead/ping?e=2&f=1\nhttps://admob-gmats.uc.r.appspot.com/\nhttps://csi.gstatic.com/csi\nhttp://www.example.com\nhttps://developer.android.com/guide/topics/media/issues/cleartext-not-permitted\nhttp://www.google.com\nhttps://adservice.google.com/getconfig/pubvendors\nhttps://developer.android.com/guide/topics/media/issues/player-accessed-on-wrong-thread\nhttps://goo.gl/J1sWQy\nhttps://fundingchoicesmessages.google.com/a/consent\nhttps://www.googleapis.com/auth/games.firstparty\nhttps://www.googleapis.com/auth/appstate\nhttps://www.googleapis.com/auth/datastoremobile\nhttps://www.googleapis.com/auth/drive.appdata\nhttps://www.googleapis.com/auth/drive.apps\nhttps://www.googleapis.com/auth/drive.file\nhttps://www.googleapis.com/auth/drive\nhttps://www.googleapis.com/auth/games\nhttps://www.googleapis.com/auth/games_lite\nhttps://www.googleapis.com/auth/userinfo.email\nhttps://www.googleapis.com/auth/userinfo.profile\nhttps://www.googleapis.com/auth/plus.login\nhttps://www.googleapis.com/auth/plus.me\nhttps://plus.google.com/\nhttps://developer.android.com/reference/com/google/android/play/core/install/model/InstallErrorCode\nhttp://schemas.android.com/apk/res-auto\nhttp://schemas.android.com/apk/res/android\nhttps://firebase.google.com/support/privacy/init-options.\nhttps://%s/%s/%s\nhttps://firebaseremoteconfig.googleapis.com/v1/projects/%s/namespaces/%s:fetch\nhttps://apps.samsung.com/appquery/appDetail.as?appId=\nhttps://play.google.com/store/apps/details?id=\nhttps://global.appnext.com/offerWallApi.aspx?\nhttps://sdk.allconnected.in/\nhttp://localhost/\nhttps://%s/%s?v=1&rid=%s&un=%s\nhttp://ip-api.com/json\nhttps://www.facebook.com\nhttps://www.youtube.com\nhttps://www.baidu.com\nhttps://yandex.com\nhttp://www.w3.org/TR/html4/strict.dtd\nhttps://policies.google.com/privacy\nhttps://unity3d.com/legal/privacy-policy\nhttps://vungle.com/privacy\nhttps://www.startapp.com/policy/services-website-privacy/\nhttps://publicsuffix.org/list/public_suffix_list.dat\nhttps://mozilla.org/MPL/2.0/\nhttp://schemas.android.com/aapt\nhttp://schemas.android.com/tools"]
["疑似IP",{"$nulls":3},"89.117.48.52",{"$nulls":4},"https://itemb.supernetobjects.com"]
["疑似URL",{"$nulls":3},"https://api.vpnstart.net/"]

{"sheet":"官方文档及API分析","index":2,"n_rows":6,"n_cols":10,"rows_kept":6}
["序号",168,171,176,177,179,181,182,183,185]
["VPN名称","Slice VPN","Snap VPN","Stark VPN Reloaded","Start VPN","strongSwan VPN Client","Super Speed VPN Proxy","Super VPN","Super VPN","SuperNet VPN"]
["图标",{"$f":"_xlfn.DISPIMG(\"ID_50C1B334EBFF4976802D6268E08E318E\",1)","v":"=DISPIMG(\"ID_50C1B334EBFF4976802D6268E08E318E\",1)"},{"$f":"_xlfn.DISPIMG(\"ID_C35A527452304686A81146714167DD55\",1)","v":"=DISPIMG(\"ID_C35A527452304686A81146714167DD55\",1)"},{"$f":"_xlfn.DISPIMG(\"ID_3D9AA7ED0C874939A9860A0DF2141F46\",1)","v":"=DISPIMG(\"ID_3D9AA7ED0C874939A9860A0DF2141F46\",1)"},{"$f":"_xlfn.DISPIMG(\"ID_305B4E3A2E674840BA334A9E4C77547F\",1)","v":"=DISPIMG(\"ID_305B4E3A2E674840BA334A9E4C77547F\",1)"},{"$f":"_xlfn.DISPIMG(\"ID_2CEBC5FB83D4422894745A10759C0D0D\",1)","v":"=DISPIMG(\"ID_2CEBC5FB83D4422894745A10759C0D0D\",1)"},{"$f":"_xlfn.DISPIMG(\"ID_FFCAA82F7B70447FAFAC677F5314E163\",1)","v":"=DISPIMG(\"ID_FFCAA82F7B70447FAFAC677F5314E163\",1)"},{"$f":"_xlfn.DISPIMG(\"ID_B9283E30D2AE416590FCE39A980F9E1E\",1)","v":"=DISPIMG(\"ID_B9283E30D2AE416590FCE39A980F9E1E\",1)"},{"$f":"_xlfn.DISPIMG(\"ID_8A655506CDE043F09073F55668FF13B0\",1)","v":"=DISPIMG(\"ID_8A655506CDE043F09073F55668FF13B0\",1)"},{"$f":"_xlfn.DISPIMG(\"ID_20EBCD8078FF4C4D9707421E3024C69C\",1)","v":"=DISPIMG(\"ID_20EBCD8078FF4C4D9707421E3024C69C\",1)"}]
["官网",null,null,"https://www2.unotelly.com/","https://web.uppersafe.com/","https://www.strongswan.org/","https://www.quarkvpn.com/privacy.html"]
[{"$nulls":3},"无效","github源码中无IP列表","github源码中无IP列表","隐私政策"]
[{"$nulls":5},"API文档中无IP列表"]

{"sheet":"https代理解析","index":3,"n_rows":6,"n_cols":10,"rows_kept":6}
["序号",168,171,176,177,179,181,182,183,185]
["VPN名称","Slice VPN","Snap VPN","Stark VPN Reloaded","StartVPN","strongSwan VPN Client","Super Speed VPN Proxy","Super VPN","Super VPN","SuperNet VPN"]
["图标",{"$f":"_xlfn.DISPIMG(\"ID_EAC4007221CC4ACA8CA5AAF3CC6C7122\",1)","v":"=DISPIMG(\"ID_EAC4007221CC4ACA8CA5AAF3CC6C7122\",1)"},{"$f":"_xlfn.DISPIMG(\"ID_4B86EBA45C68432BBB0C609689DB70ED\",1)","v":"=DISPIMG(\"ID_4B86EBA45C68432BBB0C609689DB70ED\",1)"},{"$f":"_xlfn.DISPIMG(\"ID_70A755BF414D481F93DBD294C5C94C7B\",1)","v":"=DISPIMG(\"ID_70A755BF414D481F93DBD294C5C94C7B\",1)"},{"$f":"_xlfn.DISPIMG(\"ID_7DA218DC62A2462D899B29DDF554965A\",1)","v":"=DISPIMG(\"ID_7DA218DC62A2462D899B29DDF554965A\",1)"},{"$f":"_xlfn.DISPIMG(\"ID_7F2D650D37084810A8C85CCF054962FB\",1)","v":"=DISPIMG(\"ID_7F2D650D37084810A8C85CCF054962FB\",1)"},{"$f":"_xlfn.DISPIMG(\"ID_B83B918F47A94B9C9F2E99E66AF80C57\",1)","v":"=DISPIMG(\"ID_B83B918F47A94B9C9F2E99E66AF80C57\",1)"},{"$f":"_xlfn.DISPIMG(\"ID_42BAD2617F9B43DCB5208B31A4B2462B\",1)","v":"=DISPIMG(\"ID_42BAD2617F9B43DCB5208B31A4B2462B\",1)"},{"$f":"_xlfn.DISPIMG(\"ID_D3C0B13FF7BA435CB10294C0544E3E0D\",1)","v":"=DISPIMG(\"ID_D3C0B13FF7BA435CB10294C0544E3E0D\",1)"},{"$f":"_xlfn.DISPIMG(\"ID_0ACC0B22B8D34C17988187C14364CF5F\",1)","v":"=DISPIMG(\"ID_0ACC0B22B8D34C17988187C14364CF5F\",1)"}]
["运行情况",null,null,"模拟器无法启动","物理机及模拟器均无法连接使用","需要自行配置服务器",null,"代理证书非中国无\n法使用","代理证书非中国无\n法使用"]
["解析内容API","api-breakk.slicemain.com","无",null,"api.vpnstart.net",null,"无",null,null,"无"]
["解析内容IP列表",null,"无",null,"213.202.219.137\n217.23.5.104\n5.161.61.115\n51.159.103.127\n51.159.23.202\n51.195.6.206\n51.75.68.243\n95.217.22.59",null,"无",null,null,"无"]

{"sheet":"运行特征分析","index":4,"n_rows":7,"n_cols":10,"rows_kept":7}
["序号",168,171,176,177,179,181,182,183,185]
["VPN名称","Slice VPN","Snap VPN","Stark VPN Reloaded","Start VPN","strongSwan VPN Client","Super Speed VPN Proxy","Super VPN","Super VPN","SuperNet VPN"]
["图标",{"$f":"_xlfn.DISPIMG(\"ID_97FF4CFCE9B94EB38616908DEC9FCA5A\",1)","v":"=DISPIMG(\"ID_97FF4CFCE9B94EB38616908DEC9FCA5A\",1)"},{"$f":"_xlfn.DISPIMG(\"ID_1312D4D980F447FCAF2473ADBBE9A9D5\",1)","v":"=DISPIMG(\"ID_1312D4D980F447FCAF2473ADBBE9A9D5\",1)"},{"$f":"_xlfn.DISPIMG(\"ID_38FE9E9787134FCA98CD1C6A306E670C\",1)","v":"=DISPIMG(\"ID_38FE9E9787134FCA98CD1C6A306E670C\",1)"},{"$f":"_xlfn.DISPIMG(\"ID_3F3415E078B541F0B9F308642931E79F\",1)","v":"=DISPIMG(\"ID_3F3415E078B541F0B9F308642931E79F\",1)"},{"$f":"_xlfn.DISPIMG(\"ID_C095003B1E93443FA1CDBC1018FA1399\",1)","v":"=DISPIMG(\"ID_C095003B1E93443FA1CDBC1018FA1399\",1)"},{"$f":"_xlfn.DISPIMG(\"ID_9C16F6C9051A41348A7DC614905AB777\",1)","v":"=DISPIMG(\"ID_9C16F6C9051A41348A7DC614905AB777\",1)"},{"$f":"_xlfn.DISPIMG(\"ID_6277A61B7AE748618209225C3D1B80CA\",1)","v":"=DISPIMG(\"ID_6277A61B7AE748618209225C3D1B80CA\",1)"},{"$f":"_xlfn.DISPIMG(\"ID_0CBF3276FC9846D58EDC3C1EAC933D6F\",1)","v":"=DISPIMG(\"ID_0CBF3276FC9846D58EDC3C1EAC933D6F\",1)"},{"$f":"_xlfn.DISPIMG(\"ID_3661758562F94B2E9D31884E146532D1\",1)","v":"=DISPIMG(\"ID_3661758562F94B2E9D31884E146532D1\",1)"}]
["运行情况"]
["协议",null,"IPSec（免费）","https",{"$nulls":3},"UDP","UDP"]
["端口",{"$nulls":6},"不确定","不确定"]
["服务类型"]

{"sheet":"自动化拨测及特征提取","index":5,"n_rows":8,"n_cols":10,"rows_kept":8}
["序号",168,171,176,177,179,181,182,183,185]
["VPN名称","SliceVPN","SnapVPN","StarkVPNReloaded","StartVPN","strongSwanVPN Client","SuperSpeedVPN Proxy","SuperVPN","SuperVPN","SuperNetVPN"]
["图标",{"$f":"_xlfn.DISPIMG(\"ID_0421009AC72C4D9AA6C5DEFA0F637505\",1)","v":"=DISPIMG(\"ID_0421009AC72C4D9AA6C5DEFA0F637505\",1)"},{"$f":"_xlfn.DISPIMG(\"ID_255C4E5314874C7799C7BB6390E10144\",1)","v":"=DISPIMG(\"ID_255C4E5314874C7799C7BB6390E10144\",1)"},{"$f":"_xlfn.DISPIMG(\"ID_D0916777B9F04109969DE940A68304C3\",1)","v":"=DISPIMG(\"ID_D0916777B9F04109969DE940A68304C3\",1)"},{"$f":"_xlfn.DISPIMG(\"ID_95C43B87DB9A43DBA1676049FCC7CB73\",1)","v":"=DISPIMG(\"ID_95C43B87DB9A43DBA1676049FCC7CB73\",1)"},{"$f":"_xlfn.DISPIMG(\"ID_0E005F9F6235488F83B0D72549AE8292\",1)","v":"=DISPIMG(\"ID_0E005F9F6235488F83B0D72549AE8292\",1)"},{"$f":"_xlfn.DISPIMG(\"ID_F5BC0FEA0B054F8EB6C457C22A3EF296\",1)","v":"=DISPIMG(\"ID_F5BC0FEA0B054F8EB6C457C22A3EF296\",1)"},{"$f":"_xlfn.DISPIMG(\"ID_F7F27F53B4B1441EB1B3383AB73F0255\",1)","v":"=DISPIMG(\"ID_F7F27F53B4B1441EB1B3383AB73F0255\",1)"},{"$f":"_xlfn.DISPIMG(\"ID_937CD7C367E44AF5A0928291470ED883\",1)","v":"=DISPIMG(\"ID_937CD7C367E44AF5A0928291470ED883\",1)"},{"$f":"_xlfn.DISPIMG(\"ID_7D9A0E99111E4ECE9E0944FD5EA087ED\",1)","v":"=DISPIMG(\"ID_7D9A0E99111E4ECE9E0944FD5EA087ED\",1)"}]
["运行情况","adb启动无效，使用桌面坐标点击启动",null,"安卓9.0模拟器无法启动，物理机可以使用。","模拟器及物理机可以启动但无法连接到服务器","需自行配置IKEv2服务器，无法使用。"]
["广告情况","有广告连接成功后弹出可以忽略","有广告连接成功后弹出可以忽略","有广告连接成功后弹出可以忽略",null,null,"有广告连接成功后弹出可以忽略","偶尔启动广告 需要手动关闭","偶尔启动广告 需要手动关闭","偶尔有广告连接成功后弹出可以忽略"]
["app包名","secure.slice.free.vpn","free.vpn.unblock.proxy.vpnpro","istark.vpn.starkreloaded",null,null,"com.super.speed.vpn.master.proxy","com.jrzheng.supervpnfree","com.jrzheng.supervpnfree","unlimited.free.vpn.unblock.proxy.supernet.vpn"]
["主活动名","com.stable.team.MainActivity","com.quickdy.vpn.activity.ConnectActivity",".crwDttFtqvmzs",null,null,"speed.vpn.master.proxy.ui.view.activity.LoadUI","com.supersoft.supervpnfree.activity.MainActivity","com.supersoft.supervpnfree.activity.MainActivity",".activity.SplashActivity"]
["服务器类型","单跳服务器","单跳服务器单跳服务器无法连接后转多跳https连接\n","使用FQDN特征进行封堵",null,null,"单跳服务器\n封堵后显示连接成功、但是无法连接任何网络。","单跳服务器","单跳服务器","单跳服务器"]

{"sheet":"完成进度","index":6,"n_rows":10,"n_cols":3,"rows_kept":10}
["名称","图标","进度"]
["Slice VPN",{"$f":"_xlfn.DISPIMG(\"ID_0BF6D70113854469B45272A4F95C636A\",1)","v":"=DISPIMG(\"ID_0BF6D70113854469B45272A4F95C636A\",1)"},"XXG环境模拟器封堵完成及自动化测试。"]
["Snap VPN",{"$f":"_xlfn.DISPIMG(\"ID_AF79FAD92F914DFD9B195501FD1D854C\",1)","v":"=DISPIMG(\"ID_AF79FAD92F914DFD9B195501FD1D854C\",1)"},"XXG环境模拟器封堵完成及自动化测试。"]
["Stark VPN Reloaded",{"$f":"_xlfn.DISPIMG(\"ID_350A048D99D24EE99017383DD130FC64\",1)","v":"=DISPIMG(\"ID_350A048D99D24EE99017383DD130FC64\",1)"},"模拟器无法启动、E21-Demo完成封堵及自动化测试。"]
["Start VPN",{"$f":"_xlfn.DISPIMG(\"ID_787960DEE1424A28905BC1936516BE75\",1)","v":"=DISPIMG(\"ID_787960DEE1424A28905BC1936516BE75\",1)"},"模拟器及物理机可以启动但无法连接到服务器"]
["strongSwan VPN Client",{"$f":"_xlfn.DISPIMG(\"ID_85E923FAF376495AB20CBD205DDB2E84\",1)","v":"=DISPIMG(\"ID_85E923FAF376495AB20CBD205DDB2E84\",1)"},"需自行配置IKEv2服务器，无法使用"]
["Super Speed VPN Proxy",{"$f":"_xlfn.DISPIMG(\"ID_CAC0939208614B7D9956ED841083631E\",1)","v":"=DISPIMG(\"ID_CAC0939208614B7D9956ED841083631E\",1)"},"XXG环境模拟器封堵完成及自动化测试。"]
["Super VPN",{"$f":"_xlfn.DISPIMG(\"ID_7F51845DB2F14D76B377B7A660FF6072\",1)","v":"=DISPIMG(\"ID_7F51845DB2F14D76B377B7A660FF6072\",1)"},"获取到3000+服务器IP，阻断率80%，仍在继续获取"]
["Super VPN",{"$f":"_xlfn.DISPIMG(\"ID_BA5945506B2244E0A49B3BAF1A6DCBDE\",1)","v":"=DISPIMG(\"ID_BA5945506B2244E0A49B3BAF1A6DCBDE\",1)"},"获取到3000+服务器IP，阻断率80%，仍在继续获取"]
["SuperNet VPN",{"$f":"_xlfn.DISPIMG(\"ID_A4D885B8EC3B42C3827086BD79698216\",1)","v":"=DISPIMG(\"ID_A4D885B8EC3B42C3827086BD79698216\",1)"},"XXG环境模拟器封堵完成及自动化测试。"]

{"sheet":"Confluence更新","index":7,"n_rows":10,"n_cols":19,"rows_kept":10}
["序号","总表序号","jira","优先级","特征更新周期","更新频率","维护人员","VPN名称","图标","官网","包名","特征分析概要","特征提取总结","应用版本","测试特征文件","M-Demo环境下模拟器环境下模拟器测试结果","M-Demo环境下-Demo环境下实体机测试结果","最终特征文件","最终会话日志文件"]
[null,168,"https://jira.geedge.net/browse/OSS-380","高",null,null,"何勇","Slice VPN",{"$f":"_xlfn.DISPIMG(\"ID_0BF6D70113854469B45272A4F95C636A\",1)","v":"=DISPIMG(\"ID_0BF6D70113854469B45272A4F95C636A\",1)"},null,"secure.slice.free.vpn","20240925对安装进行逆行分析，未发现有效及疑似特征。\n20241010对app安装后首次启动及连接进行https代理解密，未发现有效特征",null,1.31]
[null,171,"https://jira.geedge.net/browse/OSS-380","最高",null,null,"何勇","Snap VPN",{"$f":"_xlfn.DISPIMG(\"ID_AF79FAD92F914DFD9B195501FD1D854C\",1)","v":"=DISPIMG(\"ID_AF79FAD92F914DFD9B195501FD1D854C\",1)"},null,"free.vpn.unblock.proxy.vpnpro","20240925对安装进行逆行分析，未发现有效及疑似特征。\n20241010对app安装后首次启动及连接进行https代理解密，未发现有效特征",null,"4.7.5"]
[null,176,"https://jira.geedge.net/browse/OSS-380","中",null,null,"何勇","Stark VPN Reloaded",{"$f":"_xlfn.DISPIMG(\"ID_350A048D99D24EE99017383DD130FC64\",1)","v":"=DISPIMG(\"ID_350A048D99D24EE99017383DD130FC64\",1)"},"https://www2.unotelly.com/","istark.vpn.starkreloaded","20240925对安装进行逆行分析，未发现有效及疑似特征\n20240926对官网及API。github开源代码进行分析，未发现有效及疑似特征","无法启动",5.6]
[null,177,"https://jira.geedge.net/browse/OSS-380","中",null,null,"何勇","Start VPN",{"$f":"_xlfn.DISPIMG(\"ID_787960DEE1424A28905BC1936516BE75\",1)","v":"=DISPIMG(\"ID_787960DEE1424A28905BC1936516BE75\",1)"},"https://web.uppersafe.com/","com.dem.startvpn","20240925对安装进行逆行分析，未发现有效及疑似特征\n20240926对官网及API。github开源代码进行分析，未发现有效及疑似特征","无法启动","1.1.1"]
[null,179,"https://jira.geedge.net/browse/OSS-380","中",null,null,"何勇","strongSwan VPN Client",{"$f":"_xlfn.DISPIMG(\"ID_85E923FAF376495AB20CBD205DDB2E84\",1)","v":"=DISPIMG(\"ID_85E923FAF376495AB20CBD205DDB2E84\",1)"},"https://www.strongswan.org/","org.strongswan.android","20240925对安装进行逆行分析，未发现有效及疑似特征\n20240926对官网及API。github开源代码进行分析，未发现有效及疑似特征","无固定服务需要自行配置服务器","2.5.2"]
[null,181,"https://jira.geedge.net/browse/OSS-380","高",null,null,"何勇","Super Speed VPN Proxy",{"$f":"_xlfn.DISPIMG(\"ID_CAC0939208614B7D9956ED841083631E\",1)","v":"=DISPIMG(\"ID_CAC0939208614B7D9956ED841083631E\",1)"},"https://www.quarkvpn.com/privacy.html","com.super.speed.vpn.master.proxy","20240925对安装进行逆行分析，未发现有效及疑似特征\n20240926对官网及API。github开源代码进行分析，未发现有效及疑似特征\n20241010对app安装后首次启动及连接进行https代理解密，未发现有http及https通信",null,"3.0.1"]
[null,182,"https://jira.geedge.net/browse/OSS-380","高",null,null,"何勇","Super VPN",{"$f":"_xlfn.DISPIMG(\"ID_7F51845DB2F14D76B377B7A660FF6072\",1)","v":"=DISPIMG(\"ID_7F51845DB2F14D76B377B7A660FF6072\",1)"},null,"com.jrzheng.supervpnfree","20240925对安装进行逆行分析，未发现有效及疑似特征。","所在国埃塞不提供服务",1.2]
[null,183,"https://jira.geedge.net/browse/OSS-380","高",null,null,"何勇","Super VPN",{"$f":"_xlfn.DISPIMG(\"ID_BA5945506B2244E0A49B3BAF1A6DCBDE\",1)","v":"=DISPIMG(\"ID_BA5945506B2244E0A49B3BAF1A6DCBDE\",1)"},null,"com.jrzheng.supervpnfree","20240925对安装进行逆行分析，未发现有效及疑似特征。","所在国埃塞不提供服务",1.2]
[null,185,"https://jira.geedge.net/browse/OSS-380","中",null,null,"何勇","SuperNet VPN",{"$f":"_xlfn.DISPIMG(\"ID_A4D885B8EC3B42C3827086BD79698216\",1)","v":"=DISPIMG(\"ID_A4D885B8EC3B42C3827086BD79698216\",1)"},null,"unlimited.free.vpn.unblock.proxy.supernet.vpn","20240925对安装进行逆行分析，未发现有效及疑似特征。\n20241010对app安装后首次启动及连接进行https代理解密，未发现有效特征",null,"1.2.0"]